bitfinex/quotes_ETHUSD_20250529
["timestamp","ask_amount","ask_price","bid_price","bid_amount"]
[1748478792189,4.7798,2697.9,2697.5,11.70706504]
[1748478792550,4.7798,2697.9,2697.3,3.70737215]
[1748478792551,8.4864683,2697.9,2697.3,3.70732331]
[1748478792751,4.7798,2697.9,2697.0,8.0]
[1748478792954,4.7798,2697.9,2697.2,3.70744815]
[1748478792955,4.67782164,2697.8,2697.2,3.70744815]
[1748478793160,0.97104683,2697.8,2697.4,8.0]
[1748478793398,1.0588,2697.5,2696.0,3.55993935]
[1748478793599,4.183,2697.4,2697.3,3.70732416]
[1748478793757,1.224,2697.6,2697.4,3.70727213]
[1748478793962,4.183,2697.5,2697.2,3.55993935]
[1748478794162,7.89017502,2697.5,2697.2,3.55993935]
[1748478794475,3.70729337,2697.4,2697.2,3.55993935]
[1748478794815,0.78902934,2697.3,2697.2,3.55993935]
[1748478795164,0.78902934,2697.3,2697.0,3.55993935]
[1748478795617,1.224,2697.6,2697.0,3.55993935]
[1748478795898,4.183,2697.5,2697.0,7.267692]
[1748478796085,4.182,2697.4,2697.1,3.70768483]
[1748478796469,4.182,2697.4,2697.1,3.65768483]
[1748478796801,4.182,2697.4,2697.0,7.26770237]
[1748478797004,5.09330043,2697.4,2697.0,3.55993935]
[1748478797367,5.09330043,2697.4,2696.8,3.55993935]
[1748478797368,3.70796021,2697.0,2696.8,3.55993935]
[1748478797685,4.75339949,2696.7,2695.7,3.70956929]
[1748478797866,3.70887478,2696.3,2695.7,3.70951412]
[1748478798074,3.70873738,2696.4,2695.7,8.0]
[1748478798075,4.182,2696.2,2695.7,8.0]
[1748478798304,4.182,2696.2,2695.5,8.5579]
[1748478798506,4.182,2696.2,2695.5,1.78469083]
[1748478798803,4.182,2696.2,2696.0,3.70918323]
[1748478799331,4.93242604,2696.6,2695.6,3.70974922]
[1748478799476,1.224,2696.6,2696.4,3.70856835]
[1748478799810,4.182,2696.5,2696.3,3.70871712]
[1748478800303,1.0451,2696.7,2696.3,3.70871712]
[1748478800509,1.224,2696.9,2696.3,0.74177784]
[1748478800713,1.224,2696.9,2695.7,3.70949558]
[1748478800714,4.182,2696.8,2696.5,3.70844069]
[1748478801082,4.182,2696.8,2696.3,3.70871694]
[1748478801282,4.182,2696.8,2696.1,3.70894363]
[1748478801283,3.7082576,2696.7,2696.1,3.70900625]
[1748478801582,8.89934477,2696.8,2696.2,3.70882364]
[1748478801906,4.182,2696.8,2696.1,3.70904976]
[1748478802112,4.181,2696.7,2696.5,3.70843043]
[1748478802469,4.181,2696.7,2696.3,3.79017998]
[1748478802670,4.181,2696.7,2696.4,3.70864856]
[1748478803108,4.181,2696.7,2696.4,3.7085902]
[1748478803288,4.181,2696.7,2696.5,3.70846367]
[1748478803711,1.224,2696.9,2696.4,3.70858222]
[1748478803899,4.181,2696.6,2696.3,0.0815]
[1748478804103,4.181,2696.7,2696.3,3.79021583]
[1748478804439,3.70845508,2696.6,2696.0,3.70918457]
[1748478804648,8.67815013,2696.7,2696.1,11.55993935]
[1748478804649,3.70876346,2696.4,2696.1,11.55993935]
[1748478804929,3.70892367,2696.2,2696.1,3.55993935]
[1748478805101,3.70824584,2696.7,2696.1,3.70897677]
[1748478805300,5.405,2696.6,2696.2,4.07974907]
[1748478805520,0.9986,2696.8,2696.4,3.70859418]
[1748478805724,4.181,2696.5,2696.4,3.70859418]
[1748478805891,4.181,2696.6,2696.1,8.0]
[1748478806226,4.181,2696.6,2696.2,3.70891337]
[1748478806801,4.181,2696.6,2696.3,3.7087471]
[1748478807003,1.0429,2697.1,2696.4,8.0]
[1748478807326,1.0429,2697.1,2696.4,15.26851746]
[1748478807327,9.10783164,2697.0,2696.4,15.26851746]
[1748478807742,4.18,2696.9,2696.4,15.26851746]
[1748478807891,1.0683,2697.8,2697.2,3.70745838]
[1748478808092,1.22,2698.0,2696.5,7.34993127]
[1748478808093,4.18,2697.7,2696.9,8.0]
[1748478808430,4.18,2697.7,2696.8,3.55993935]
[1748478808431,1.0683,2697.2,2696.8,3.55993935]
[1748478808732,1.0683,2697.2,2696.5,11.79000969]
[1748478808733,4.18,2697.1,2696.5,0.0815]
[1748478809030,4.18,2697.1,2696.3,3.55993935]
[1748478809327,4.18,2697.0,2696.5,3.70847803]
[1748478809650,4.18,2697.0,2695.9,3.64143935]
[1748478809932,3.70847258,2696.6,2696.0,3.70912595]
[1748478810118,7.88852935,2696.5,2696.0,8.0]
[1748478810431,1.0312,2696.4,2695.8,3.70938196]
[1748478810674,3.70878611,2696.3,2695.7,3.70959547]
[1748478810835,1.0312,2696.4,2695.5,3.70979786]
[1748478811029,1.0312,2696.4,2695.5,8.0]
[1748478811233,4.73991861,2696.4,2695.8,3.70945397]
[1748478811432,4.73991861,2696.4,2696.0,3.70908629]
[1748478811433,4.18,2696.3,2696.0,3.70908629]
[1748478811634,4.18,2696.3,2695.5,4.86585079]
[1748478811635,4.18,2696.3,2695.9,3.70926573]
[1748478812741,4.18,2696.3,2696.2,1.0]
[1748478812916,7.88878611,2696.3,2696.2,1.0]
[1748478813120,8.90278472,2696.3,2696.2,1.0]
[1748478814073,5.19299861,2696.3,2696.2,1.0]
[1748478814207,8.90178472,2696.3,2696.2,1.0]
[1748478815046,1.0312,2696.4,2696.2,1.0]
[1748478815253,4.179,2696.3,2696.2,1.0]
[1748478815578,3.70779794,2697.1,2696.2,1.0]
[1748478815579,1.22,2696.9,2696.2,1.0]
[1748478815857,0.9807,2696.8,2696.3,0.47089723]
[1748478816069,5.1597,2696.8,2696.4,3.70864856]
[1748478816225,5.1597,2696.8,2696.3,0.47089723]
[1748478816226,0.9807,2696.8,2696.3,0.47089723]
[1748478816553,1.22,2696.9,2696.4,3.70864856]
[1748478816776,4.179,2696.8,2696.6,3.7083002]
[1748478817052,1.22,2697.5,2696.6,8.03708083]
[1748478817239,5.399,2697.5,2697.1,3.707556]
[1748478817437,1.22,2697.5,2697.3,3.70736907]
[1748478817639,1.22,2697.5,2697.4,3.70727367]
[1748478817841,1.22,2697.5,2697.1,8.0815]
[1748478818022,1.22,2697.5,2697.0,11.7078235]
[1748478818350,1.22,2697.5,2697.0,3.70770109]
[1748478818513,1.22,2697.5,2697.1,8.0]
[1748478818717,1.22,2697.5,2697.4,3.70727367]
[1748478820260,1.22,2697.5,2697.2,3.70748904]
[1748478820475,1.22,2697.5,2697.1,3.70757621]
[1748478820772,1.22,2697.5,2696.8,0.0815]
[1748478820979,1.22,2697.5,2697.4,3.70727367]
[1748478821282,0.05,2697.9,2697.3,3.70740044]
[1748478821417,4.178,2697.7,2697.6,3.70699881]
[1748478821790,4.178,2697.7,2697.3,11.70727945]
[1748478822082,4.6008,2697.7,2697.2,3.7075344]
[1748478822276,4.178,2697.7,2697.2,3.70741206]
[1748478822419,4.178,2697.7,2697.2,8.0]
[1748478822626,4.178,2697.7,2697.1,3.7075962]
[1748478822862,4.178,2697.7,2697.0,3.7078235]
[1748478823064,1.0604,2697.6,2696.8,3.70805182]
[1748478823274,1.0604,2697.6,2696.7,3.55993935]
[1748478823469,1.0604,2697.6,2696.5,0.0815]
[1748478823470,1.0604,2697.6,2696.8,7.26795315]
[1748478823721,3.70748108,2697.3,2696.8,7.26803469]
[1748478823918,4.177,2697.2,2696.8,7.26803469]
[1748478824120,4.177,2697.2,2696.8,3.55993935]
[1748478824718,4.177,2697.2,2696.8,7.26802764]
[1748478825036,4.177,2697.2,2696.8,3.55993935]
[1748478825557,4.177,2697.2,2696.7,3.55993935]
[1748478825558,8.67304693,2697.2,2696.7,3.55993935]
[1748478825868,1.0604,2697.1,2696.7,3.55993935]
[1748478826069,3.70789972,2697.0,2696.7,3.55993935]
[1748478826221,4.76814873,2697.1,2696.5,3.55993935]
[1748478826423,1.0604,2696.8,2696.3,3.55993935]
[1748478826674,4.176,2696.7,2696.3,3.55993935]
[1748478827075,4.176,2696.7,2696.3,7.2687224]
[1748478827742,7.88430434,2696.7,2696.3,3.55993935]
[1748478828057,7.88430434,2696.7,2696.3,7.2686408]
[1748478828058,4.176,2696.7,2696.3,7.2686408]
[1748478828431,1.01651487,2697.0,2696.4,0.0815]
[1748478828637,4.176,2696.9,2696.5,3.70843064]
[1748478828953,3.70768939,2697.1,2696.5,3.70845202]
[1748478828954,4.176,2696.8,2696.5,3.70845202]
[1748478829154,4.176,2696.8,2696.4,3.79011172]
[1748478829155,4.176,2696.8,2696.6,3.70835811]
[1748478829575,4.176,2696.8,2696.4,3.79011172]
[1748478829775,4.176,2697.0,2696.8,3.70799432]
[1748478830075,4.176,2697.0,2696.4,11.70862839]
[1748478830243,4.176,2697.0,2696.5,3.7084785]
[1748478830443,5.33514879,2697.0,2696.5,3.7084785]
[1748478830672,9.04299701,2697.0,2696.5,3.7084785]
[1748478830870,3.70829618,2696.7,2696.2,1.0]
[1748478831172,4.176,2696.6,2696.3,3.7087654]
[1748478831346,4.176,2696.6,2696.2,4.70888092]
[1748478831543,4.176,2696.6,2696.2,1.0]
[1748478831746,4.9644244,2696.6,2696.2,1.0]
[1748478831950,3.70878611,2696.3,2696.2,1.0]
[1748478832149,1.0379,2696.4,2696.2,1.0]
[1748478832331,3.70878611,2696.3,2696.2,1.0]
[1748478833058,1.0379,2696.4,2696.2,1.0]
[1748478833275,4.74657331,2696.4,2696.2,1.0]
[1748478833747,3.70878611,2696.3,2696.2,1.0]
[1748478833943,4.74660145,2696.4,2696.2,1.0]
[1748478834275,4.175,2696.3,2696.2,1.0]
[1748478836073,7.88378611,2696.3,2696.2,1.0]
[1748478836231,4.175,2696.3,2696.2,1.0]
[1748478836432,8.89794819,2696.3,2696.2,1.0]
[1748478836637,9.44794819,2696.3,2696.2,1.0]
[1748478839770,10.54014819,2696.3,2696.2,1.0]
[1748478840334,4.25906123,2696.1,2696.0,20.0]
[1748478840534,6.75099425,2696.1,2696.0,20.0]
[1748478840860,10.14366123,2696.1,2696.0,20.0]
[1748478841036,6.4346,2696.1,2696.0,20.0]
[1748478841558,10.14366123,2696.1,2696.0,20.0]
[1748478842563,6.4346,2696.1,2696.0,20.0]
[1748478842947,10.14366123,2696.1,2696.0,20.0]
[1748478843151,6.4346,2696.1,2696.0,20.0]
[1748478843348,10.14366123,2696.1,2696.0,20.0]
[1748478843549,6.4346,2696.1,2696.0,20.0]
[1748478844010,4.08739618,2696.7,2696.0,20.0]
[1748478844011,1.0117,2697.0,2696.0,22.0]
[1748478844292,1.0117,2697.0,2696.6,3.70830125]
[1748478844293,4.174,2696.9,2696.6,3.70830125]
[1748478844494,1.217,2697.3,2696.8,3.70808322]
[1748478844681,4.174,2697.2,2696.8,3.70808322]
[1748478844863,2.2332,2697.3,2696.9,3.70794899]
[1748478845251,3.70777695,2697.1,2696.5,0.9992]
[1748478845456,3.70768603,2697.1,2696.2,0.996]
[1748478845706,3.70768603,2697.1,2696.0,22.0]
[1748478845707,0.55,2697.0,2696.0,22.0]
[1748478845880,4.77291768,2696.7,2696.1,11.70897914]
[1748478846154,4.77291768,2696.7,2696.0,22.0]
[1748478846155,4.174,2696.6,2696.3,8.0]
[1748478846350,1.0646,2696.7,2696.3,3.70869969]
[1748478846652,4.173,2696.5,2696.1,7.28766375]
[1748478846963,4.173,2696.6,2696.5,3.70842693]
[1748478847494,4.173,2696.6,2696.5,3.70851103]
[1748478848878,4.173,2696.6,2696.4,3.70859125]
[1748478849191,4.173,2696.6,2696.2,3.70887857]
[1748478849822,4.173,2696.6,2696.1,10.99669472]
[1748478850002,4.173,2696.6,2696.3,3.70876426]
[1748478850202,4.173,2696.6,2696.4,3.70862495]
[1748478850416,4.172,2696.5,2696.3,7.26860406]
[1748478850729,4.172,2696.4,2696.3,7.26866716]
[1748478851019,4.172,2696.4,2696.3,9.46226082]
[1748478851198,4.172,2696.4,2696.3,5.75353301]
[1748478851369,4.172,2696.4,2696.3,3.55993935]
[1748478852384,3.70811279,2696.8,2696.3,7.26859638]
[1748478852590,7.88025196,2696.7,2696.3,3.55993935]
[1748478853410,3.7085825,2696.5,2696.3,3.55993935]
[1748478853598,4.172,2696.4,2696.3,3.55993935]
[1748478853993,8.29784856,2696.4,2696.3,3.55993935]
[1748478854193,3.70906123,2696.1,2696.0,20.0]
[1748478854427,10.67766123,2696.1,2696.0,20.0]
[1748478855934,10.67766123,2696.1,2696.0,18.8994]
[1748478856121,12.11631972,2696.1,2696.0,10.8996]
[1748478856328,12.11631972,2696.1,2696.0,2.8998]
[1748478858095,6.72831972,2696.1,2696.0,2.8998]
[1748478858412,11.56631972,2696.1,2696.0,2.8998]
[1748478858626,12.11631972,2696.1,2696.0,2.8998]
[1748478860642,7.94531972,2696.1,2696.0,2.8998]
[1748478860797,12.11631972,2696.1,2696.0,2.8998]
[1748478861641,7.87962301,2696.5,2696.0,2.8998]
[1748478861942,3.70871636,2696.4,2696.0,2.8998]
[1748478862250,3.70800007,2696.9,2696.0,2.8998]
[1748478862251,3.70820334,2696.8,2696.1,1.0067]
[1748478862414,4.171,2696.7,2696.2,3.70884466]
[1748478863007,3.70820334,2696.8,2696.2,3.70884466]
[1748478863201,7.87924736,2696.7,2696.1,1.0067]
[1748478863401,7.87924736,2696.7,2696.1,4.71569917]
[1748478863629,4.171,2696.7,2696.2,3.70885634]
[1748478864137,4.75698329,2696.9,2696.3,3.70868342]
[1748478864339,0.55,2696.8,2696.3,3.70868342]
[1748478864651,4.721,2696.8,2696.3,3.70871812]
[1748478865029,4.721,2696.8,2696.3,3.70871617]
[1748478865732,8.42910594,2696.8,2696.1,9.0067]
[1748478865931,8.42910594,2696.8,2696.2,3.70888137]
[1748478865932,8.90120594,2696.8,2696.2,3.70888137]
[1748478866649,5.1931,2696.8,2696.3,3.70877089]
[1748478868145,8.90121657,2696.8,2696.3,3.70877089]
[1748478868338,8.90121657,2696.8,2696.2,3.70890513]
[1748478868542,3.70885331,2696.3,2696.0,2.8998]
[1748478868740,7.87796216,2696.2,2696.0,2.8998]
[1748478869054,4.169,2696.1,2696.0,2.8998]
[1748478872423,7.87806123,2696.1,2696.0,2.8998]
[1748478872624,9.21586735,2696.1,2696.0,2.8998]
[1748478873077,1.1061,2696.6,2696.0,2.8998]
[1748478873241,4.07776015,2697.8,2696.3,8.0]
[1748478873242,4.169,2696.8,2696.3,8.0]
[1748478873424,4.169,2696.8,2696.2,8.0]
[1748478873628,4.169,2696.7,2696.6,3.7083735]
[1748478873827,1.0875,2697.2,2696.8,3.70807218]
[1748478874068,1.0875,2697.2,2696.3,1.27815521]
[1748478874268,3.70784612,2697.0,2696.5,3.70846063]
[1748478874478,4.168,2696.9,2696.7,3.70815206]
[1748478874643,4.168,2696.9,2696.8,3.70809848]
[1748478875897,4.168,2696.9,2696.7,3.70823191]
[1748478876052,4.920471,2697.3,2696.8,3.70803099]
[1748478876252,4.168,2697.2,2696.8,3.70803099]
[1748478876439,1.7050471,2697.3,2696.8,3.70803099]
[1748478876640,4.168,2697.2,2696.8,3.70803099]
[1748478876853,4.168,2697.2,2696.7,3.70816532]
[1748478877082,4.168,2697.2,2696.8,3.70806758]
[1748478877758,4.168,2697.2,2696.9,3.70795076]
[1748478877957,4.168,2697.2,2696.8,3.70806189]
[1748478878773,4.168,2697.2,2696.7,3.70816837]
[1748478878941,9.15517293,2697.2,2696.6,1.0475]
[1748478879141,3.7078118,2697.1,2696.6,1.0475]
[1748478879442,9.15515837,2697.2,2696.6,4.75577464]
[1748478879666,9.15515837,2697.2,2696.6,1.0475]
[1748478879667,3.70780431,2697.1,2696.6,1.0475]
[1748478879868,3.70790394,2697.0,2696.5,8.0]
[1748478880068,3.70790394,2697.0,2696.3,1.0393]
[1748478880069,3.70817545,2696.8,2696.3,1.0393]
[1748478880281,4.167,2696.7,2696.3,1.0393]
[1748478880477,4.167,2696.7,2696.1,11.70900881]
[1748478880478,3.7084198,2696.6,2696.1,11.70900881]
[1748478881181,7.87530172,2696.7,2696.1,11.70900881]
[1748478881802,7.87530172,2696.7,2696.2,3.70892127]
[1748478881997,3.70830172,2696.7,2696.2,3.70892127]
[1748478882205,4.166,2696.6,2696.2,3.70892127]
[1748478882579,4.166,2696.6,2696.1,8.0]
[1748478882790,0.55,2696.5,2696.1,8.0]
[1748478883103,3.70830736,2696.7,2696.1,8.0]
[1748478883104,3.75659931,2697.9,2696.1,11.55993935]
[1748478883307,3.70717712,2697.5,2696.2,4.60153935]
[1748478883466,3.70727367,2697.4,2696.8,3.70805252]
[1748478883668,4.90744125,2697.3,2696.9,3.70794297]
[1748478883866,4.166,2697.2,2696.6,1.0954]
[1748478884098,3.70770139,2697.1,2696.6,4.80368275]
[1748478884264,7.87362112,2697.2,2696.6,4.80368275]
[1748478884963,3.70728846,2697.4,2696.9,3.7078984]
[1748478885192,4.166,2697.3,2696.9,3.7078984]
[1748478885390,3.70720997,2697.5,2696.8,3.70806219]
[1748478885579,0.55,2697.5,2697.0,3.7077488]
[1748478885787,4.166,2697.4,2697.0,3.7077488]
[1748478885992,1.213,2697.8,2697.2,1.1042]
[1748478886220,1.213,2697.8,2697.4,3.707193]
[1748478886424,1.213,2697.8,2697.2,1.1042]
[1748478886425,1.213,2697.8,2697.5,3.70713225]
[1748478886569,3.70693535,2697.7,2697.2,9.1042]
[1748478886765,3.70695058,2697.7,2697.2,9.1042]
[1748478886969,3.70713914,2697.5,2697.2,9.1042]
[1748478887294,4.25723168,2697.5,2697.1,3.55993935]
[1748478887464,4.165,2697.4,2697.1,3.55993935]
[1748478888002,7.87234475,2697.4,2697.1,3.55993935]
[1748478888977,4.165,2697.4,2697.1,3.55993935]
[1748478889390,7.87231117,2697.4,2697.1,3.55993935]
[1748478889596,3.70747023,2697.3,2697.1,3.55993935]
[1748478889795,4.86544695,2697.3,2697.1,3.55993935]
[1748478889994,4.86544695,2697.3,2696.8,8.0]
[1748478890311,4.86544695,2697.3,2696.4,1.0777]
[1748478890312,3.70851103,2696.5,2696.4,1.0777]
[1748478890468,4.164,2696.5,2696.1,1.0777]
[1748478890670,3.70871754,2696.4,2696.1,1.0777]
[1748478890874,2.24177814,2697.3,2696.1,1.47545]
[1748478891072,0.55,2697.1,2696.1,1.47545]
[1748478891276,3.70844704,2696.6,2696.1,1.0777]
[1748478891477,7.87252539,2696.5,2696.1,1.0777]
[1748478891676,7.87252539,2696.5,2696.1,9.0777]
[1748478891988,7.87260917,2696.5,2696.1,9.0777]
[1748478892807,3.70865789,2696.4,2696.1,9.0777]
[1748478893172,4.164,2696.5,2696.1,9.0777]
[1748478893374,3.70871599,2696.4,2696.1,8.0]
[1748478894311,3.70871599,2696.4,2696.0,2.8998]
[1748478894312,3.70892367,2696.2,2696.0,2.8998]
[1748478894511,3.70892367,2696.2,2696.0,10.8998]
[1748478894512,4.163,2696.1,2696.0,10.8998]
[1748478895084,8.95146123,2696.1,2696.0,2.8998]
[1748478895284,7.87206123,2696.1,2696.0,2.8998]
[1748478896918,4.25851103,2696.5,2696.0,2.8998]
[1748478897222,3.70889711,2696.3,2696.0,2.8998]
[1748478897424,1.213,2696.4,2696.0,2.8998]
[1748478897628,1.213,2696.4,2696.1,1.0791]
[1748478897829,5.376,2696.4,2696.1,1.0791]
[1748478898038,1.213,2696.4,2696.1,2.21883675]
[1748478898183,1.213,2696.4,2696.1,13.7787761]
[1748478898389,4.163,2696.3,2696.2,11.70882297]
[1748478898619,3.70758713,2697.2,2696.2,11.55993935]
[1748478898820,4.163,2697.1,2696.3,4.64003935]
[1748478899048,4.163,2697.1,2696.7,3.70820308]
[1748478899200,4.163,2697.1,2696.6,1.0801]
[1748478899387,4.163,2697.1,2696.7,8.0]
[1748478899707,4.163,2697.1,2696.7,11.70817529]
[1748478899911,4.163,2697.0,2696.7,8.0]
[1748478900100,4.163,2697.0,2696.7,0.61005357]
[1748478900295,4.163,2697.0,2696.6,1.0801]
[1748478900732,7.87089512,2697.0,2696.6,1.0801]
[1748478900962,3.70789512,2697.0,2696.6,1.0801]
[1748478901101,4.91659419,2697.2,2696.7,3.70821773]
[1748478901102,4.162,2696.9,2696.7,3.70821773]
[1748478901727,1.209,2697.2,2696.9,8.0]
[1748478901917,4.162,2697.1,2696.9,9.52680378]
[1748478902247,1.209,2697.2,2696.9,13.23466941]
[1748478902437,1.209,2697.2,2697.0,3.7078235]
[1748478902724,1.259,2697.9,2697.3,11.70739375]
[1748478902896,3.70709039,2697.6,2697.2,3.55993935]
[1748478904037,3.70678513,2697.8,2697.2,3.55993935]
[1748478904201,4.161,2697.5,2697.2,3.55993935]
[1748478905225,3.70693084,2697.7,2697.2,3.55993935]
[1748478905540,4.96564838,2697.9,2697.2,4.76681601]
[1748478905835,1.259,2697.9,2697.3,11.55993935]
[1748478906057,4.161,2697.8,2697.6,1.106]
[1748478906630,3.7068614,2697.7,2697.3,4.66083935]
[1748478906847,1.259,2697.9,2697.4,8.0]
[1748478907157,0.05,2697.9,2697.8,8.0]
[1748478907380,0.05,2697.9,2697.8,12.82842399]
[1748478907659,0.05,2697.9,2697.8,18.04188413]
[1748478908215,1.209,2698.6,2698.5,1.0727]
[1748478909246,0.05,2698.9,2698.8,11.70535052]
[1748478909562,4.209,2698.9,2698.8,8.0]
[1748478910044,0.05,2698.9,2698.8,8.0]
[1748478910245,4.208,2698.9,2698.8,8.0]
[1748478911023,4.208,2698.9,2698.8,11.70535052]
[1748478911227,0.05,2698.9,2698.8,13.24644718]
[1748478911425,0.05,2698.9,2698.8,14.32344718]
[1748478912254,0.05,2698.9,2698.8,10.61809666]
[1748478912464,0.05,2698.9,2698.8,14.32344718]
[1748478914376,0.05,2698.9,2698.8,17.88338653]
[1748478914578,0.05,2698.9,2698.8,14.32344718]
[1748478916964,0.05,2699.9,2699.8,11.70397807]
[1748478917333,0.05,2699.9,2699.8,13.35158599]
[1748478917485,0.05,2699.9,2699.8,14.41958599]
[1748478920460,0.05,2699.9,2699.4,1.09]
[1748478920950,0.05,2699.9,2699.8,11.70397807]
[1748478921172,0.05,2699.9,2699.8,12.75317807]
[1748478921923,0.05,2700.9,2700.8,3.70260663]
[1748478922223,1.0557,2702.3,2701.8,3.70123621]
[1748478922532,3.70090755,2702.1,2701.8,8.0]
[1748478922829,5.2087,2702.4,2701.2,1.0786]
[1748478922830,4.203,2701.9,2701.2,1.0786]
[1748478923009,3.70140459,2701.7,2701.2,1.0786]
[1748478923331,1.57814046,2701.6,2700.3,3.70326312]
[1748478923615,1.57814046,2701.6,2700.7,1.0786]
[1748478923800,1.208,2701.6,2700.7,1.0786]
[1748478924117,1.208,2701.6,2701.5,8.0]
[1748478924427,1.208,2701.6,2701.3,1.0786]
[1748478924905,3.70217944,2701.2,2700.6,8.0]
[1748478925116,0.37021794,2701.2,2700.4,1.0854]
[1748478925291,7.85260903,2701.6,2701.1,1.0854]
[1748478925497,3.70164723,2701.5,2700.9,3.70242619]
[1748478925979,7.85256818,2701.6,2701.1,8.0]
[1748478926178,4.4869796,2701.5,2701.0,8.0]
[1748478926393,4.48693399,2701.5,2700.9,11.70236035]
[1748478926599,0.78525682,2701.5,2701.0,3.70225019]
[1748478926824,3.70183184,2701.4,2700.9,8.0]
[1748478926987,1.808,2701.9,2700.9,3.70236805]
[1748478926988,0.05,2701.9,2700.9,3.70236805]
[1748478927325,7.85223954,2701.8,2701.3,8.0]
[1748478927740,0.05,2701.9,2700.8,9.0912]
[1748478927944,0.05,2701.9,2700.7,3.70268916]
[1748478927945,0.05,2701.9,2701.6,8.0]
[1748478928220,0.05,2701.9,2701.7,3.70129587]
[1748478928422,0.05,2701.9,2701.5,8.0]
[1748478928726,0.05,2701.9,2701.4,4.62428524]
[1748478929024,0.42,2701.8,2700.0,3.70365766]
[1748478929333,3.70204929,2701.3,2700.2,0.55]
[1748478929529,4.15,2701.4,2700.9,3.70243903]
[1748478929849,4.93516642,2701.4,2701.1,3.70209393]
[1748478930131,4.93516642,2701.4,2701.3,3.70192129]
[1748478930433,0.78516642,2701.4,2701.3,3.70192129]
[1748478930579,0.78516642,2701.4,2700.8,3.70258507]
[1748478930580,0.42,2701.8,2701.6,3.701434]
[1748478930779,0.05,2701.9,2701.6,3.70140378]
[1748478930780,4.149,2701.7,2701.6,3.70140378]
[1748478931134,0.05,2701.9,2701.8,3.70123621]
[1748478932084,0.05,2701.9,2701.8,11.70123621]
[1748478933922,0.05,2701.9,2701.8,12.34296321]
[1748478934293,0.05,2701.9,2701.8,13.89436321]
[1748478934635,0.05,2702.9,2702.8,3.6998668]
[1748478934791,0.05,2702.9,2702.8,12.7930668]
[1748478935941,0.05,2702.9,2702.8,8.0]
[1748478936236,0.05,2702.9,2702.8,11.6998668]
[1748478936398,0.05,2702.9,2702.8,8.0]
[1748478936729,4.197,2702.9,2702.8,8.0]
[1748478936936,4.71722,2702.9,2702.8,8.0]
[1748478937139,4.71722,2702.9,2701.9,1.1063]
[1748478937294,8.41704576,2702.9,2702.4,8.0]
[1748478937631,3.69995192,2702.8,2702.2,3.70064273]
[1748478937834,0.84171719,2702.7,2702.3,8.0]
[1748478938701,4.146,2702.6,2702.4,3.70031825]
[1748478939092,4.146,2702.6,2702.4,3.70033596]
[1748478939431,4.145,2702.5,2702.4,11.70033596]
[1748478939634,3.70041444,2702.4,2700.9,3.70239757]
[1748478939792,4.145,2702.3,2701.5,1.0143]
[1748478939991,3.70092796,2702.1,2701.5,4.71588645]
[1748478940230,3.70072917,2702.2,2701.5,1.0143]
[1748478940536,0.49867172,2702.5,2702.3,3.70047427]
[1748478940721,3.69956026,2703.1,2701.9,8.0]
[1748478940722,1.0685,2702.9,2701.9,8.0]
[1748478940920,1.0685,2702.9,2702.7,3.69989414]
[1748478941131,1.0685,2702.9,2702.6,3.70008046]
[1748478941321,1.0685,2702.9,2702.0,3.70092887]
[1748478941322,5.2135,2702.9,2702.0,3.70092887]
[1748478941522,0.52135,2702.8,2701.8,1.0498]
[1748478941723,4.22124798,2702.8,2701.8,1.0498]
[1748478941921,4.22130169,2702.8,2702.2,3.70062003]
[1748478942123,3.7000088,2702.7,2702.2,3.70062003]
[1748478942322,0.42213588,2702.6,2702.1,3.70076301]
[1748478942638,3.70069925,2702.2,2701.6,3.70139797]
[1748478942823,1.2452,2702.1,2701.6,3.70139797]
[1748478943343,1.5986,2702.5,2701.4,1.0554]
[1748478943344,1.0486,2702.5,2701.4,1.0554]
[1748478943505,5.2426,2702.9,2702.6,3.7000648]
[1748478943704,5.2426,2702.9,2702.5,3.70020857]
[1748478943705,0.64446,2702.8,2702.5,3.70020857]
[1748478943904,1.0986,2702.9,2702.5,3.70020857]
[1748478943905,5.2426,2702.9,2702.5,3.70020857]
[1748478944141,5.2426,2702.9,2702.6,3.70008657]
[1748478944499,5.2426,2702.9,2702.2,3.70056822]
[1748478944836,8.94235069,2702.9,2702.2,3.70056822]
[1748478944999,5.2426,2702.9,2702.4,3.70030586]
[1748478945199,5.2426,2702.9,2702.5,3.70026011]
[1748478945200,1.01442592,2702.8,2702.5,3.70026011]
[1748478945440,5.15842592,2702.8,2702.6,3.70007588]
[1748478945633,0.62570259,2702.7,2702.5,3.70020701]
[1748478945811,0.62570259,2702.7,2702.2,8.0]
[1748478945812,0.62570259,2702.7,2702.1,8.0]
[1748478946213,0.62570259,2702.7,2702.4,3.7002894]
[1748478946414,0.62570259,2702.7,2702.5,3.70024928]
[1748478947439,0.62570259,2702.7,2702.4,3.7003592]
[1748478947650,1.0986,2702.9,2702.5,8.0]
[1748478947803,0.05,2702.9,2702.8,3.6998668]
[1748478948218,0.05,2702.9,2702.8,11.6998668]
[1748478948419,0.05,2702.9,2702.8,8.0]
[1748478948671,0.05,2702.9,2702.8,11.6998668]
[1748478950815,0.05,2702.9,2702.8,12.7909668]
[1748478952236,0.05,2702.9,2702.8,14.44006231]
[1748478953120,0.05,2702.9,2702.8,12.7909668]
[1748478954454,0.05,2702.9,2702.8,13.3409668]
[1748478954749,0.05,2702.9,2702.8,12.7909668]
[1748478955676,2.10744378,2703.5,2702.8,12.7909668]
[1748478955951,1.99460627,2703.5,2703.4,12.74964564]
[1748478956157,1.99460627,2703.5,2703.4,18.53552698]
[1748478956511,0.05,2703.9,2703.8,3.6984984]
[1748478956715,0.05,2703.9,2703.8,11.6984984]
[1748478957141,0.05,2703.9,2703.8,11.6484984]